fUSD/lending_fUSD_20240802
["ID","MTS","AMOUNT","RATE_DAILY","PERIOD"]
[333856443,1722571841006,-557.016171,0.000167,2]
[333856444,1722571841019,-151.0,0.000167,2]
[333856445,1722571841029,-333.305564,0.000167,2]
[333856446,1722571841038,-333.305564,0.000167,2]
[333856447,1722571841047,-151.0,0.000167,2]
[333856448,1722571841057,-151.0,0.000167,2]
[333856449,1722571841066,-151.0,0.000167,2]
[333856451,1722571841075,-719.366882,0.000167,2]
[333856453,1722571841085,-281.387819,0.000167,2]
[333856454,1722571841095,-151.0,0.000167,2]
[333856455,1722571841105,-281.387819,0.000167,2]
[333856456,1722571841116,-719.366882,0.000167,2]
[333856457,1722571841127,-369.199713,0.000167,2]
[333856458,1722571841136,-369.199713,0.000167,2]
[333856459,1722571841145,-167.0,0.00016702,2]
[333856460,1722571841155,-150.0,0.00016712,2]
[333856461,1722571841164,-150.0,0.00016712,2]
[333856462,1722571841173,-150.0,0.00016712,2]
[333856463,1722571841183,-356.11,0.00016712,2]
[333856464,1722571841192,-150.0,0.00016712,2]
[333856465,1722571841201,-356.11,0.00016712,2]
[333856466,1722571841211,-150.0,0.00016712,2]
[333856467,1722571841221,-150.0,0.00016712,2]
[333856468,1722571841231,-356.11,0.00016712,2]
[333856469,1722571841240,-150.0,0.00016712,2]
[333856470,1722571841249,-150.0,0.00016712,2]
[333856471,1722571841258,-150.0,0.00016712,2]
[333856472,1722571841268,-356.11,0.00016712,2]
[333856473,1722571841279,-150.0,0.00016712,2]
[333856474,1722571841288,-150.0,0.00016712,2]
[333856475,1722571841298,-150.0,0.00016712,2]
[333856476,1722571841308,-150.0,0.00016712,2]
[333856477,1722571841318,-150.0,0.00016712,2]
[333856478,1722571841327,-150.0,0.00016712,2]
[333856479,1722571841337,-150.0,0.00016712,2]
[333856480,1722571841349,-150.0,0.00016712,2]
[333856481,1722571841365,-152.0,0.00016779,11]
[333856482,1722571841374,-484.49015142,0.00016793,2]
[333856483,1722571841384,-1762.37384286,0.00016798,2]
[333856484,1722571841394,-800.0,0.000169,6]
[333856485,1722571841406,-152.0,0.00016915,12]
[333856486,1722571841416,-1732.00412417,0.00016963,2]
[333856487,1722571841426,-14689.8565816,0.00016983,2]
[333856488,1722571841435,-3000.0,0.00017,2]
[333856489,1722571841445,-535.42562793,0.00017004,2]
[333856490,1722571841454,-203.15,0.00017033,2]
[333856491,1722571841464,-160.0,0.00017036,2]
[333856492,1722571841474,-3324.09157884,0.00017037,2]
[333856499,1722571842739,-5000.0,0.00015999,2]
[333856500,1722571842751,-11365.76500276,0.00017037,2]
[333856501,1722571842762,-20902.27607348,0.00017047,2]
[333856502,1722571842772,-152.0,0.00017051,13]
[333856503,1722571842783,-5526.95944219,0.00017062,2]
[333856504,1722571842793,-250.92,0.00017096,2]
[333856505,1722571842802,-420.52,0.00017123,2]
[333856506,1722571842811,-420.52,0.00017123,2]
[333856507,1722571842821,-167.0,0.00017137,2]
[333856508,1722571842830,-152.0,0.00017187,14]
[333856509,1722571842839,-14689.8565816,0.00017232,2]
[333856510,1722571842849,-622.84,0.0001726,2]
[333856511,1722571842858,-150.0,0.0001726,2]
[333856512,1722571842868,-150.0,0.0001726,2]
[333856513,1722571842877,-150.0,0.0001726,2]
[333856514,1722571842886,-150.0,0.0001726,2]
[333856515,1722571842896,-150.93562008,0.0001726,2]
[333856516,1722571842905,-151.0,0.00017262,2]
[333856517,1722571842914,-151.0,0.00017262,2]
[333856518,1722571842923,-244.088042,0.00017262,2]
[333856519,1722571842932,-244.088042,0.00017262,2]
[333856520,1722571842942,-217.19425,0.00017262,2]
[333856521,1722571842951,-151.0,0.00017262,2]
[333856522,1722571842960,-217.19425,0.00017262,2]
[333856523,1722571842969,-1732.00412417,0.0001728,2]
[333856524,1722571842979,-946.97061969,0.0001731,2]
[333856540,1722571846176,-530.37,0.00015342,2]
[333856542,1722571846185,-5838.41331178,0.0001731,2]
[333856544,1722571846197,-155.61606853,0.0001731,2]
[333856546,1722571846206,-152.0,0.00017323,15]
[333856548,1722571846215,-484.49015142,0.0001736,2]
[333856550,1722571846225,-2425.34378005,0.00017412,2]
[333856552,1722571846236,-870.24122,0.00017412,2]
[333856554,1722571846246,-846.47514523,0.00017412,2]
[333856558,1722571846268,-10547.79643632,0.00017412,2]
[333856559,1722571846278,-182.26732048,0.00017432,2]
[333856562,1722571846290,-152.0,0.00017459,16]
[333856564,1722571846300,-22107.0366173,0.00017491,2]
[333856566,1722571846309,-14689.8565816,0.000175,2]
[333856568,1722571846319,-151.0,0.0001751,2]
[333856570,1722571846328,-736.319255,0.0001751,2]
[333856572,1722571846337,-736.319255,0.0001751,2]
[333856574,1722571846347,-292.817833,0.0001751,2]
[333856576,1722571846360,-292.817833,0.0001751,2]
[333856578,1722571846369,-151.0,0.0001751,2]
[333856580,1722571846378,-151.0,0.0001751,2]
[333856582,1722571846387,-2427.458467,0.0001751,2]
[333856584,1722571846398,-2427.458467,0.0001751,2]
[333856586,1722571846407,-457.380102,0.0001751,2]
[333856588,1722571846416,-457.380102,0.0001751,2]
[333856589,1722571846426,-1577.172606,0.0001751,2]
[333856592,1722571846439,-58759.4263266,0.0001751,2]
[333856594,1722571846450,-7457.69056519,0.0001751,2]
[333856596,1722571846461,-1891.09879631,0.0001751,2]
[333858380,1722571898445,17034.0,0.00027,120]
[333858382,1722572005413,200.0,0.00026988,120]
[333858405,1722573031825,-189.27438937,0.000107,2]
[333858406,1722573031835,-377.277724,0.000108,3]
[333858407,1722573031846,-360.35116936,0.000108,3]
[333858408,1722573031857,-62.37110664,0.000108,3]
[333858409,1722573031867,-860.16031424,0.000108,2]
[333858410,1722573031878,-419.17924755,0.000108,2]
[333858411,1722573031889,-62.53885649,0.000109,3]
[333858412,1722573031900,-650.40807414,0.000109,3]
[333858413,1722573031911,-442.55415533,0.000109,3]
[333858414,1722573031922,-444.49891404,0.000109,3]
[333858415,1722573031931,-186.0265,0.000109,2]
[333858416,1722573031940,-200.81,0.00010964,2]
[333858417,1722573031950,-300.0,0.00010999,2]
[333858418,1722573031961,-150.0,0.00010999,2]
[333858419,1722573031970,-7060.0159955,0.00011,2]
[333858420,1722573031981,-1293261.78110262,0.00011,2]
[333858421,1722573031993,-650.01339646,0.00011,2]
[333858422,1722573032007,-765.29022052,0.00011,2]
[333858423,1722573032021,-448.12958754,0.00011,2]
[333858424,1722573032032,-7450.39419363,0.00011,2]
[333858425,1722573032047,-315.7795185,0.00011,2]
[333858426,1722573032058,-696.77431602,0.00011,2]
[333858517,1722573037764,-1167.62187621,0.00010997,2]
[333858518,1722573038010,-681.84634704,0.00010997,2]
[333858521,1722573038019,-1934.39227403,0.00011,2]
[333858556,1722573038425,-977.69249947,0.00011,2]
[333858559,1722573038437,-335.76750053,0.00011,2]
[333858561,1722573038448,-289.29490635,0.00011,2]
[333858563,1722573038460,-501.3,0.00011,2]
[333858582,1722573039807,-2812.77703245,0.00011,2]
[333858583,1722573039924,-987.22897559,0.00011,2]
[333858584,1722573039986,-679.46471504,0.00011,2]
[333858585,1722573040046,-227445.84079173,0.00011,2]
[333858586,1722573040056,-1154.66941616,0.00011744,2]
[333858587,1722573040065,-18001.55966958,0.00011844,2]
[333858588,1722573040075,-168.10634716,0.00011944,2]
[333858589,1722573040084,-151.0,0.00012044,2]
[333858590,1722573040094,-420.0,0.00012087,2]
[333858591,1722573040103,-499.99,0.00012099,2]
[333858592,1722573040112,-1154.66941611,0.00012366,2]
[333858593,1722573040122,-17121.04575584,0.00012727,2]
[333858594,1722573040131,-18001.55966953,0.00012739,2]
[333858595,1722573040143,-1154.66941611,0.00012987,2]
[333858596,1722573040153,-200.81,0.00013228,2]
[333858597,1722573040162,-355.0,0.00013282,2]
[333858598,1722573040171,-1154.66941611,0.00013609,2]
[333858599,1722573040181,-18001.55966953,0.00013634,2]
[333858600,1722573040190,-200.0,0.00013699,2]
[333858602,1722573040200,-105506.1971614,0.000138,2]
[333858627,1722573042969,-1587.45,0.000138,2]
[333858660,1722573047011,-502.09888355,0.000138,2]
[333858661,1722573591666,1000.0,0.00027,120]
[333858662,1722574077717,500.0,9.62e-05,2]
[333858663,1722574127571,363.71319874,9.62e-05,2]
[333858664,1722574171593,791.28331312,9.62e-05,2]
[333858676,1722574231908,-192.378,0.000109,2]
[333858677,1722574231920,-300.0,0.00010989,2]
[333858678,1722574231932,-7188.30438102,0.0001099,2]
[333858679,1722574231945,-960.92161359,0.0001099,2]
[333858680,1722574231964,-1500.7981108,0.0001099,2]
[333858681,1722574231977,-1047.0,0.0001099,2]
[333858682,1722574231990,-460.29713697,0.0001099,2]
[333858683,1722574232000,-210.21,0.00011417,2]
[333858684,1722574232012,-345.49343774,0.00012,2]
[333858685,1722574232031,-204.50656226,0.00012,2]
[333858686,1722574232044,-420.0,0.00012088,2]
[333858687,1722574232056,-626.48150712,0.00012984,2]
[333858688,1722574232070,-252.03849288,0.00012984,2]
[333858689,1722574232085,-740.44550712,0.00012992,2]
[333858704,1722574234594,-2078.89449288,0.00012992,2]
[333858705,1722574234604,-200.0,0.00013024,2]
[333858706,1722574234615,-224.28,0.00013033,2]
[333858707,1722574234625,-150.99,0.00013033,2]
[333858708,1722574234635,-250.0,0.00013056,2]
[333858709,1722574234646,-9605.57,0.00013062,2]
[333858710,1722574234657,-697.6,0.00013071,2]
[333858711,1722574234667,-436.0,0.00013297,2]
[333858712,1722574234678,-199.3,0.00013371,2]
[333858713,1722574234689,-150.0,0.00013452,2]
[333858714,1722574234699,-250.0,0.00013531,2]
[333858715,1722574234709,-302.4,0.0001364,2]
[333858716,1722574234719,-3000.0,0.0001366,2]
[333858717,1722574234730,-210.21,0.00013681,2]
[333858718,1722574234740,-2751.0,0.00013699,2]
[333858719,1722574234750,-200.0,0.00013699,2]
[333858720,1722574234760,-636.5223,0.000137,2]
[333858721,1722574234770,-499.99,0.00013753,2]
[333858722,1722574234780,-769.5,0.00013973,2]
[333858723,1722574234790,-194.42,0.00013973,2]
[333858724,1722574234800,-150.0,0.00013973,2]
[333858725,1722574234810,-600.0,0.00014,2]
[333858726,1722574234821,-5841.153,0.00014189,2]
[333858727,1722574234832,-1522.1012,0.00014319,2]
[333858728,1722574234842,-312.0658,0.00014606,2]
[333858729,1722574234852,-224.28,0.00014662,2]
[333858730,1722574234862,-493.15747906,0.00014667,2]
[333858731,1722574234873,-2846.7415,0.00014694,2]
[333858732,1722574234883,-1262.7984,0.00014694,2]
[333858733,1722574234894,-697.6,0.00014705,2]
[333858734,1722574234905,-9698.90578993,0.00014706,2]
[333858735,1722574234915,-74674.17047587,0.00014788,2]
[333858736,1722574234925,-160.0,0.0001479,2]
[333858737,1722574234935,-146698.106794,0.00014794,4]
[333858738,1722574234944,-13484.22197109,0.00014888,2]
[333858739,1722574234954,-5619.0,0.00014943,2]
[333858740,1722574234964,-155.0,0.00014999,2]
[333858741,1722574234973,-213.0658,0.00015028,2]
[333858742,1722574234984,-425.87,0.00015068,2]
[333858743,1722574234993,-150.0,0.00015068,2]
[333858744,1722574235003,-150.0,0.00015068,2]
[333858745,1722574235012,-425.87,0.00015068,2]
[333858746,1722574235021,-150.0,0.00015068,2]
[333858747,1722574235030,-150.0,0.00015068,2]
[333858748,1722574235039,-530.37,0.00015068,2]
[333858749,1722574235050,-852.66,0.00015068,2]
[333858750,1722574235060,-530.37,0.00015068,2]
[333858751,1722574235070,-150.0,0.00015068,2]
[333858752,1722574235081,-530.37,0.00015068,2]
[333858753,1722574235099,-530.37,0.00015068,2]
[333858754,1722574235109,-530.37,0.00015068,2]
[333858755,1722574235118,-530.37,0.00015068,2]
[333858756,1722574235128,-530.37,0.00015068,2]
[333858757,1722574235140,-530.37,0.00015068,2]
[333858758,1722574235150,-530.37,0.00015068,2]
[333858759,1722574235161,-5264.0,0.000151,2]
[333858760,1722574235172,-302.4,0.00015345,2]
[333858761,1722574235183,-4311.5441,0.00015347,2]
[333858762,1722574235193,-360.0475,0.00015347,2]
[333858763,1722574235203,-705.5862,0.00015347,2]
[333858764,1722574235212,-168.8213,0.00015347,2]
[333858765,1722574235222,-74674.1704758,0.00015356,2]
[333858766,1722574235231,-623.71755966,0.00015369,2]
[333858767,1722574235241,-242.87270372,0.00015369,2]
[333858768,1722574235251,-4642.9854,0.00015437,2]
[333858769,1722574235260,-13484.22197102,0.00015445,2]
[333858770,1722574235270,-14126.7349,0.00015478,2]
[333858771,1722574235280,-410.622,0.00015507,2]
[333858772,1722574235290,-13104.7156383,0.00015537,2]
[333858773,1722574235299,-1672.631,0.00015547,2]
[333858774,1722574235309,-1925.0,0.00015547,2]
[333858775,1722574235319,-1255.0,0.00015547,2]
[333858776,1722574235331,-628.612,0.00015547,2]
[333858777,1722574235341,-453.752,0.00015547,2]
[333858778,1722574235351,-152.707,0.00015547,2]
[333858779,1722574235361,-817.811,0.00015547,2]
[333858780,1722574235370,-1135.0,0.00015547,2]
[333858781,1722574235379,-446.173,0.00015547,2]
[333858782,1722574235389,-550.0,0.00015547,2]
[333858783,1722574235398,-1502.03,0.00015547,2]
[333858784,1722574235408,-1363.09,0.00015547,2]
[333858785,1722574235418,-3314.755,0.00015547,2]
[333858786,1722574235428,-1689.592,0.00015547,2]
[333858787,1722574235438,-21732.0,0.00015547,2]
[333858788,1722574235448,-5901.897,0.00015547,2]
[333858789,1722574235458,-151.477,0.00015547,2]
[333858790,1722574235467,-5191.912,0.00015547,2]
[333858791,1722574235476,-617.69,0.00015547,2]
[333858792,1722574235485,-150.166,0.00015547,2]
[333858793,1722574235495,-827.8092,0.0001555,2]
[333858794,1722574235505,-500.0,0.00015713,2]
[333858795,1722574235515,-65523.5781916,0.00015737,2]
[333858796,1722574235524,-16126.3004,0.00015747,2]
[333858797,1722574235534,-23274.4115,0.00015747,2]
[333858798,1722574235544,-100000.0,0.00015747,2]
[333858799,1722574235553,-167.0,0.00015831,2]
[333858800,1722574235563,-535.42562793,0.0001587,2]
[333858801,1722574235573,-13104.7156383,0.0001589,2]
[333858802,1722574235585,-150.0,0.0001589,2]
[333858803,1722574235595,-155.0,0.00015897,2]
[333858804,1722574235605,-300.0,0.00015897,2]
[333858805,1722574235615,-700.0,0.000159,5]
[333858806,1722574235625,-74674.1704758,0.00015924,2]
[333858807,1722574235635,-151.0,0.00015942,2]
[333858808,1722574235645,-710.607569,0.00015942,2]
[333858809,1722574235655,-151.0,0.00015942,2]
[333858810,1722574235665,-710.607569,0.00015942,2]
[333858811,1722574235675,-162.054262,0.00015942,2]
[333858812,1722574235684,-151.0,0.00015942,2]
[333858813,1722574235694,-162.054262,0.00015942,2]
[333858814,1722574235704,-181.485817,0.00015942,2]
[333858815,1722574235714,-181.485817,0.00015942,2]
[333858816,1722574235724,-290.316858,0.00015942,2]
[333858817,1722574235733,-4020.984703,0.00015942,2]
[333858818,1722574235743,-4020.984703,0.00015942,2]
[333858819,1722574235752,-1498.313976,0.00015942,2]
[333858820,1722574235761,-1498.313976,0.00015942,2]
[333858821,1722574235771,-155.731935,0.00015942,2]
[333858822,1722574235780,-755.358678,0.00015942,2]
[333858823,1722574235789,-155.731935,0.00015942,2]
[333858824,1722574235799,-755.358678,0.00015942,2]
[333858825,1722574235810,-151.0,0.00015942,2]
[333858826,1722574235819,-3900.298432,0.00015942,2]
[333858827,1722574235831,-151.0,0.00015942,2]
[333858828,1722574235841,-3900.298432,0.00015942,2]
[333858829,1722574235851,-151.0,0.00015942,2]
[333858830,1722574235860,-530.826915,0.00015942,2]
[333858831,1722574235870,-1803.312054,0.00015942,2]
[333858832,1722574235880,-1803.312054,0.00015942,2]
[333858833,1722574235890,-384.626328,0.00015942,2]
[333858834,1722574235900,-253.249037,0.00015942,2]
[333858835,1722574235909,-530.826915,0.00015942,2]
[333858836,1722574235919,-384.626328,0.00015942,2]
[333858837,1722574235928,-253.249037,0.00015942,2]
[333858838,1722574235938,-151.0,0.00015942,2]
[333858839,1722574235947,-194.670013,0.00015942,2]
[333858840,1722574235957,-614.982914,0.00015942,2]
[333858841,1722574235967,-1625.623424,0.00015942,2]
[333858842,1722574235976,-194.670013,0.00015942,2]
[333858843,1722574235986,-151.0,0.00015942,2]
[333858844,1722574235995,-614.982914,0.00015942,2]
[333858845,1722574236004,-212.85488,0.00015942,2]
[333858846,1722574236014,-157.756612,0.00015942,2]
[333858847,1722574236023,-1625.623424,0.00015942,2]
[333858848,1722574236032,-647.430194,0.00015942,2]
[333858849,1722574236042,-212.85488,0.00015942,2]
[333858850,1722574236052,-151.0,0.00015942,2]
[333858851,1722574236063,-157.756612,0.00015942,2]
[333858852,1722574236072,-647.430194,0.00015942,2]
[333858853,1722574236085,-472.214764,0.00015942,2]
[333858854,1722574236094,-472.214764,0.00015942,2]
[333858855,1722574236106,-332.279741,0.00015942,2]
[333858856,1722574236115,-210.21,0.00015945,2]
[333858857,1722574236125,-150.0,0.00015956,2]
[333858858,1722574236135,-150.0,0.00015956,2]
[333858859,1722574236146,-150.0,0.00015956,2]
[333858860,1722574236155,-150.0,0.00015956,2]
[333858861,1722574236166,-425.87,0.00015956,2]
[333858862,1722574236176,-150.73,0.00015956,2]
[333858863,1722574236185,-13104.7156383,0.0001599,2]
[333858864,1722574236195,-10600.0,0.00016,2]
[333858865,1722574236205,-650.0,0.00016,2]
[333858866,1722574236215,-151.0,0.00016,2]
[333858867,1722574236226,-151.0,0.00016,2]
[333858868,1722574236236,-151.0,0.00016,2]
[333858869,1722574236247,-151.0,0.00016,2]
[333858870,1722574236256,-151.0,0.00016,2]
[333858871,1722574236266,-154.886178,0.00016,2]
[333858872,1722574236275,-13484.22197102,0.00016002,2]
[333858873,1722574236285,-158.35050473,0.00016026,2]
[333858874,1722574236294,-160.24817792,0.00016033,2]
[333858875,1722574236304,-150.0,0.00016126,2]
[333858876,1722574236313,-150.0,0.00016126,2]
[333858877,1722574236323,-228.02521538,0.00016126,2]
[333858878,1722574236332,-193.75892435,0.00016126,2]
[333858879,1722574236342,-3000.0,0.0001616,2]
[333858880,1722574236352,-151.2,0.00016164,2]
[333858881,1722574236362,-167.0,0.00016173,2]
[333858882,1722574236371,-1964.0,0.000162,2]
[333858883,1722574236380,-224.28,0.00016292,2]
[333858884,1722574236390,-697.6,0.00016339,2]
[333858885,1722574236399,-26209.4312766,0.00016417,2]
[333858886,1722574236409,-39314.146915,0.00016426,2]
[333858887,1722574236418,-43823.3176323,0.00016426,2]
[333858888,1722574236428,-252.046482,0.00016436,2]
[333858889,1722574236437,-252.046482,0.00016436,2]
[333858890,1722574236447,-2049.813708,0.00016436,2]
[333858891,1722574236456,-2049.813708,0.00016436,2]
[333858892,1722574236465,-194.670013,0.00016436,2]
[333858893,1722574236475,-1625.623424,0.00016436,2]
[333858894,1722574236484,-194.670013,0.00016436,2]
[333858895,1722574236494,-1625.623424,0.00016436,2]
[333858896,1722574236505,-13104.7156383,0.00016447,2]
[333858897,1722574236514,-151.0,0.00016457,2]
[333858898,1722574236524,-710.607569,0.00016457,2]
[333858899,1722574236534,-151.0,0.00016457,2]
[333858900,1722574236544,-710.607569,0.00016457,2]
[333858901,1722574236554,-162.054262,0.00016457,2]
[333858902,1722574236563,-151.0,0.00016457,2]
[333858903,1722574236572,-162.054262,0.00016457,2]
[333858904,1722574236583,-181.485817,0.00016457,2]
[333858905,1722574236594,-181.485817,0.00016457,2]
[333858906,1722574236604,-4020.984703,0.00016457,2]
[333858907,1722574236614,-4020.984703,0.00016457,2]
[333858908,1722574236623,-1498.313976,0.00016457,2]
[333858909,1722574236634,-1498.313976,0.00016457,2]
[333858910,1722574236644,-155.731935,0.00016457,2]
[333858911,1722574236654,-755.358678,0.00016457,2]
[333858912,1722574236664,-155.731935,0.00016457,2]
[333858913,1722574236673,-755.358678,0.00016457,2]
[333858914,1722574236683,-151.0,0.00016457,2]
[333858915,1722574236692,-3900.298432,0.00016457,2]
[333858916,1722574236702,-151.0,0.00016457,2]
[333858917,1722574236712,-3900.298432,0.00016457,2]
[333858918,1722574236721,-151.0,0.00016457,2]
[333858919,1722574236731,-530.826915,0.00016457,2]
[333858920,1722574236741,-1803.312054,0.00016457,2]
[333858921,1722574236750,-1803.312054,0.00016457,2]
[333858922,1722574236759,-384.626328,0.00016457,2]
[333858923,1722574236769,-253.249037,0.00016457,2]
[333858924,1722574236778,-530.826915,0.00016457,2]
[333858925,1722574236787,-384.626328,0.00016457,2]
[333858926,1722574236797,-253.249037,0.00016457,2]
[333858929,1722574238127,-151.0,0.00016457,2]
[333858930,1722574238139,-614.982914,0.00016457,2]
[333858931,1722574238148,-614.982914,0.00016457,2]
[333858932,1722574238158,-212.85488,0.00016457,2]
[333858933,1722574238169,-151.0,0.00016457,2]
[333858934,1722574238179,-157.756612,0.00016457,2]
[333858935,1722574238188,-647.430194,0.00016457,2]
[333858936,1722574238199,-212.85488,0.00016457,2]
[333858937,1722574238208,-151.0,0.00016457,2]
[333858938,1722574238218,-157.756612,0.00016457,2]
[333858939,1722574238228,-647.430194,0.00016457,2]
[333858940,1722574238237,-472.214764,0.00016457,2]
[333858941,1722574238247,-472.214764,0.00016457,2]
[333858942,1722574238257,-332.279741,0.00016457,2]
[333858943,1722574238267,-151.0,0.00016467,2]
[333858944,1722574238276,-151.0,0.00016467,2]
[333858945,1722574238286,-151.0,0.00016467,2]
[333858946,1722574238296,-151.0,0.00016467,2]
[333858947,1722574238305,-151.0,0.00016467,2]
[333858948,1722574238315,-500.0,0.0001651,2]
[333858949,1722574238324,-500.0,0.0001651,2]
[333858950,1722574238335,-341.23,0.0001651,2]
[333858951,1722574238345,-500.0,0.0001651,2]
[333858952,1722574238354,-277.37,0.0001651,2]
[333858953,1722574238364,-500.0,0.00016542,2]
[333858954,1722574238373,-6527.46016323,0.00016549,2]
[333858955,1722574238447,-627.68,0.00016549,2]
[333858957,1722574238458,-5219.05612154,0.00016549,2]
[333858959,1722574238470,-730.51935353,0.00016549,2]
[333858960,1722574238479,-78.44235916,0.00016549,2]
[333858961,1722574238492,-21833.21645704,0.00016549,2]
[333858962,1722574238501,-26209.4312766,0.00016557,2]
[333858963,1722574238511,-20531.48017126,0.00016557,2]
[333858964,1722574238523,-1047.7158435,0.00016557,2]
[333858965,1722574238534,-332.46280144,0.00016557,2]
[333858966,1722574238543,-150.313056,0.00016559,2]
[333858967,1722574238884,-1072.50233623,0.00014261,2]
[333858968,1722574238896,-318.38310447,0.00014261,2]
[333858969,1722574238906,-226.30673067,0.00014706,2]
[333858970,1722574238916,-155.0,0.0001587,2]
[333858971,1722574238927,-332.279741,0.00015942,2]
[333858972,1722574238936,-176.415849,0.00016427,2]
[333858973,1722574238946,-332.279741,0.00016457,2]
[333858974,1722574238956,-5474.87224186,0.00016492,2]
[333858975,1722574238968,-1969.22712928,0.00016492,2]
[333858976,1722574238980,-4795.42269386,0.00016492,2]
[333858977,1722574238992,-667.76472037,0.00016492,2]
[333858978,1722574239004,-326.82220256,0.00016492,2]
[333858979,1722574239016,-617.69,0.00016492,2]
[333858980,1722574239028,-655.82000289,0.00016492,2]
[333858981,1722574239054,-1654.53650654,0.00016492,2]
[333858982,1722574239068,-58512.01497844,0.00016492,2]
[333858983,1722574239079,-13333.90891502,0.00016559,2]
[333858984,1722574239091,-781.936404,0.00016567,2]
[333858985,1722574239102,-781.936404,0.00016567,2]
[333858986,1722574239112,-3000.0,0.00016567,2]
[333858987,1722574239123,-3000.0,0.00016567,2]
[333858988,1722574239133,-641.589965,0.00016567,2]
[333858989,1722574239143,-227.723428,0.00016567,2]
[333858990,1722574239153,-641.589965,0.00016567,2]
[333858991,1722574239165,-227.723428,0.00016567,2]
[333858992,1722574239176,-151.0,0.00016567,2]
[333858993,1722574239187,-2923.122339,0.00016567,2]
[333858994,1722574239197,-151.0,0.00016567,2]
[333858995,1722574239209,-151.0,0.00016567,2]
[333858996,1722574239220,-10000.0,0.00016567,2]
[333858997,1722574239230,-2923.122339,0.00016567,2]
[333858998,1722574239241,-10000.0,0.00016567,2]
[333858999,1722574239254,-10000.0,0.00016567,2]
[333859000,1722574239265,-179.84942,0.00016567,2]
[333859001,1722574239275,-3401.317663,0.00016567,2]
[333859002,1722574239284,-576.829577,0.00016567,2]
[333859003,1722574239294,-3401.317663,0.00016567,2]
[333859004,1722574239304,-576.829577,0.00016567,2]
[333859005,1722574239314,-548.784218,0.00016567,2]
[333859006,1722574239323,-548.784218,0.00016567,2]
[333859007,1722574239335,-151.0,0.00016567,2]
[333859008,1722574239345,-151.0,0.00016567,2]
[333859009,1722574239355,-151.0,0.00016567,2]
[333859010,1722574239366,-151.0,0.00016567,2]
[333859011,1722574239377,-189.421915,0.00016567,2]
[333859012,1722574239387,-545.120266,0.00016567,2]
[333859013,1722574239397,-189.421915,0.00016567,2]
[333859014,1722574239407,-545.120266,0.00016567,2]
[333859015,1722574239417,-151.0,0.00016567,2]
[333859016,1722574239426,-176.415849,0.00016567,2]
[333859017,1722574239436,-13104.7156383,0.0001657,2]
[333859018,1722574239446,-21911.6588162,0.0001657,2]
[333859019,1722574239458,-151.0,0.00016577,2]
[333859020,1722574239468,-151.0,0.00016577,2]
[333859021,1722574239478,-440.588384,0.00016577,2]
[333859022,1722574239488,-440.588384,0.00016577,2]
[333859023,1722574239498,-1762.37384286,0.0001661,2]
[333859024,1722574239508,-1400.0,0.000167,6]
[333859025,1722574239520,-13104.7156383,0.0001679,2]
[333859026,1722574239530,-2100.0,0.000168,6]
[333859027,1722574239542,-194.670013,0.00016835,2]
[333859028,1722574239553,-1625.623424,0.00016835,2]
[333859029,1722574239563,-194.670013,0.00016835,2]
[333859030,1722574239573,-1625.623424,0.00016835,2]
[333859031,1722574239584,-2800.0,0.000169,6]
[333859032,1722574239594,-13104.7156383,0.00016911,2]
[333859033,1722574239604,-21911.6588162,0.00016911,2]
[333859034,1722574239614,-13104.7156383,0.00016911,2]